bitfinex/quotes_ETHUSD_20250824
["timestamp","ask_amount","ask_price","bid_price","bid_amount"]
[1756066367548,3.0,4743.9,4743.1,0.0038]
[1756066367754,0.1056,4743.2,4743.1,0.0038]
[1756066367963,6.0196,4743.2,4743.1,0.0038]
[1756066368269,30.1056,4743.2,4743.1,0.0038]
[1756066368575,41.02128132,4743.2,4743.1,0.0038]
[1756066368778,37.15537023,4743.2,4743.1,0.0038]
[1756066368979,43.06837023,4743.2,4743.1,0.0038]
[1756066369278,37.15537023,4743.2,4743.1,0.0038]
[1756066369487,42.64228132,4743.2,4743.1,0.0038]
[1756066370479,10.533,4743.2,4743.1,0.0038]
[1756066370858,40.533,4743.2,4743.1,0.0038]
[1756066371060,34.62,4743.2,4743.1,0.0038]
[1756066371391,43.04560509,4743.2,4743.1,0.0038]
[1756066371688,2.10850221,4742.8,4742.1,0.04]
[1756066371853,2.1087259,4742.2,4742.1,0.04]
[1756066372052,46.49004967,4742.2,4742.1,0.04]
[1756066372564,44.38232377,4742.2,4742.1,0.04]
[1756066372773,2.10912618,4741.3,4741.1,0.04]
[1756066372971,40.95382162,4741.2,4741.1,0.04]
[1756066373483,34.621,4741.2,4741.1,0.04]
[1756066373646,40.68739811,4741.2,4741.1,0.04]
[1756066374658,40.529,4741.2,4741.1,0.04]
[1756066374858,1.621,4741.2,4741.1,0.04]
[1756066375088,7.529,4741.2,4741.1,0.5124]
[1756066375385,1.621,4741.2,4741.1,0.04]
[1756066375549,7.531,4741.2,4741.1,0.04]
[1756066375954,7.53,4741.2,4741.1,0.5124]
[1756066376149,37.53,4741.2,4741.1,0.04]
[1756066376387,34.621,4741.2,4741.1,0.04]
[1756066376552,40.529,4741.2,4741.1,0.04]
[1756066376953,34.621,4741.2,4741.1,0.04]
[1756066377387,40.528,4741.2,4741.1,0.04]
[1756066377889,34.621,4741.2,4741.1,0.04]
[1756066378090,10.526,4741.2,4741.1,0.04]
[1756066378554,4.7266,4741.2,4741.1,0.04]
[1756066378751,41.10526,4741.2,4741.1,0.04]
[1756066379152,3.0,4741.1,4740.1,0.04]
[1756066379352,2.10953793,4740.4,4740.1,0.04]
[1756066379589,0.1056,4740.2,4740.1,0.04]
[1756066379802,46.18821562,4740.2,4740.1,0.04]
[1756066380102,46.42328043,4740.2,4740.1,0.04]
[1756066380255,46.31668043,4740.2,4740.1,0.04]
[1756066380453,44.20706481,4740.2,4740.1,0.04]
[1756066380690,16.08161562,4740.2,4740.1,0.04]
[1756066380872,8.069,4740.2,4740.1,0.04]
[1756066381075,46.08061562,4740.2,4740.1,0.04]
[1756066381277,46.48743166,4740.2,4740.1,0.04]
[1756066381476,38.47581604,4740.2,4740.1,0.04]
[1756066381690,45.47306481,4740.2,4740.1,0.04]
[1756066381890,46.31668043,4740.2,4740.1,0.04]
[1756066382203,48.93736358,4740.2,4740.1,0.04]
[1756066382901,49.44515425,4740.2,4740.1,0.04]
[1756066383099,2.214,4739.2,4739.1,0.04]
[1756066383280,42.31872076,4739.2,4739.1,0.04]
[1756066383475,42.31872076,4739.2,4738.4,0.003]
[1756066383476,4.32437248,4738.5,4738.4,0.003]
[1756066383802,33.0,4738.5,4738.4,0.003]
[1756066384003,6.05675485,4738.5,4738.4,0.4754]
[1756066384506,30.0,4738.5,4738.4,0.003]
[1756066384667,9.0602091,4738.5,4738.4,0.003]
[1756066384875,3.37650609,4738.2,4738.1,0.04]
[1756066385203,4.32495161,4737.2,4735.4,0.4724]
[1756066385405,0.68008602,4737.7,4735.1,0.04]
[1756066385616,5.898,4737.6,4735.1,0.04]
[1756066385914,9.735,4737.5,4736.6,0.4724]
[1756066386072,1.623,4737.4,4736.6,0.4724]
[1756066386272,1.623,4737.4,4735.9,0.4724]
[1756066386273,31.623,4737.4,4735.9,0.4724]
[1756066386496,30.0,4737.3,4735.9,0.4724]
[1756066386699,5.897,4737.2,4735.9,0.4724]
[1756066386911,35.897,4737.2,4735.9,0.4724]
[1756066387069,38.00795161,4737.2,4735.3,0.01392132]
[1756066387606,37.166,4737.2,4735.3,0.01392132]
[1756066387799,0.68071084,4736.6,4735.3,0.01392132]
[1756066388104,0.68080379,4737.1,4736.1,0.5124]
[1756066388290,5.895,4737.0,4736.1,0.5124]
[1756066388493,6.85369638,4738.5,4736.1,0.5164]
[1756066388494,7.518,4736.9,4736.1,0.5164]
[1756066388665,7.518,4736.9,4736.1,0.044]
[1756066388666,1.623,4736.8,4736.1,0.044]
[1756066388870,2.11139732,4736.2,4736.1,0.044]
[1756066389204,43.07839732,4736.2,4736.1,0.044]
[1756066389624,1.623,4736.8,4736.1,0.5164]
[1756066389906,1.623,4738.3,4736.1,0.5164]
[1756066390105,0.7,4736.3,4736.1,0.5164]
[1756066390282,5.9986,4736.2,4736.1,0.044]
[1756066390489,35.893,4736.2,4735.1,0.04]
[1756066390696,2.11153107,4735.9,4735.1,0.04]
[1756066390901,30.0,4735.8,4735.1,0.04]
[1756066391173,5.074,4736.1,4735.1,0.04]
[1756066391174,30.0,4736.0,4735.1,0.04]
[1756066391415,5.892,4735.9,4735.2,0.4724]
[1756066391941,5.892,4735.9,4735.3,2.11179624]
[1756066392070,1.623,4736.3,4735.2,0.4724]
[1756066392276,5.891,4736.2,4735.2,0.4724]
[1756066392594,5.891,4736.2,4735.2,2.84665933]
[1756066392827,30.0,4736.1,4735.2,0.4724]
[1756066393106,30.0,4735.2,4735.1,0.04]
[1756066393311,5.891,4735.2,4735.1,0.04]
[1756066393479,5.891,4735.2,4735.1,0.4994]
[1756066393672,5.891,4735.2,4735.1,0.04]
[1756066393878,37.515,4735.2,4735.1,0.04]
[1756066394113,31.624,4735.2,4735.1,0.04]
[1756066394477,37.513,4735.2,4735.1,0.04]
[1756066395224,38.213,4735.2,4735.1,0.04]
[1756066395892,40.32484321,4735.2,4735.1,0.04]
[1756066396081,38.213,4735.2,4735.1,0.04]
[1756066396824,8.21,4735.2,4735.1,0.4994]
[1756066396997,8.209,4735.2,4735.1,0.4994]
[1756066397513,2.324,4735.2,4735.1,0.4994]
[1756066397714,0.7,4735.2,4735.1,2.61128781]
[1756066398621,0.7,4735.2,4735.1,0.4994]
[1756066398824,5.883,4735.5,4735.1,0.4994]
[1756066399021,1.624,4736.1,4735.1,0.4994]
[1756066399022,5.882,4735.8,4735.7,2.11162024]
[1756066399191,5.882,4735.8,4735.7,0.4594]
[1756066399395,1.624,4737.8,4735.7,0.4594]
[1756066399597,0.41004016,4738.0,4735.9,2.11153107]
[1756066399795,0.04,4738.4,4736.0,0.71649311]
[1756066399982,0.04,4738.4,4735.4,2.11172458]
[1756066399983,5.881,4738.3,4736.2,2.11139732]
[1756066400208,1.624,4738.8,4738.3,2.11046155]
[1756066400422,1.624,4738.8,4736.3,0.4594]
[1756066400423,1.40131141,4740.6,4738.4,0.4594]
[1756066400730,5.88,4740.3,4738.6,2.11032794]
[1756066400907,0.1056,4738.8,4738.7,2.56968341]
[1756066401087,0.001,4740.7,4740.2,2.10959782]
[1756066401282,0.1056,4740.6,4740.2,2.10959782]
[1756066401482,0.001,4740.7,4740.3,0.4594]
[1756066401795,5.919,4740.4,4740.3,0.4594]
[1756066402022,0.1456,4740.4,4740.3,0.4594]
[1756066402839,0.1456,4740.4,4739.5,0.4594]
[1756066402989,0.1456,4740.4,4738.4,2.11039615]
[1756066402990,6.0206,4740.4,4739.6,0.4594]
[1756066403184,5.875,4740.3,4739.4,2.10994264]
[1756066403440,1.624,4740.2,4739.5,0.4594]
[1756066403717,0.04,4741.4,4740.4,2.10952251]
[1756066403718,1.624,4741.3,4740.4,2.10952251]
[1756066403918,7.498,4741.3,4741.2,2.10917067]
[1756066404086,1.624,4741.3,4741.2,2.56857067]
[1756066404282,0.1056,4741.3,4741.2,2.56857067]
[1756066404520,0.1056,4741.3,4741.2,3.03635574]
[1756066404719,0.041,4741.4,4741.2,3.03635574]
[1756066404925,0.041,4741.4,4741.3,0.4594]
[1756066405224,1.623,4743.2,4742.3,2.10868144]
[1756066405392,0.04,4743.4,4743.1,2.10832577]
[1756066405590,0.1456,4743.4,4743.3,2.10823688]
[1756066405942,0.04,4743.4,4742.2,0.4594]
[1756066406102,0.04,4743.4,4743.0,2.10835155]
[1756066406438,0.04,4743.4,4743.2,2.10824288]
[1756066406605,0.04,4743.4,4743.3,0.4594]
[1756066406792,0.04,4743.4,4742.0,0.4594]
[1756066407019,0.04,4743.4,4741.2,0.46778507]
[1756066407214,0.04,4743.4,4741.1,0.4594]
[1756066407215,0.04,4743.4,4741.3,0.30364541]
[1756066407399,0.04,4743.4,4739.7,1.623]
[1756066407599,0.04,4743.4,4741.5,2.10903722]
[1756066407800,0.04,4743.4,4741.4,0.4594]
[1756066408002,0.04,4743.4,4741.5,2.10903722]
[1756066408202,30.0,4743.3,4740.6,2.10943762]
[1756066408402,0.04,4743.4,4740.1,0.04]
[1756066408403,5.863,4743.2,4741.9,2.10885266]
[1756066408586,30.4513,4743.1,4741.1,2.10917501]
[1756066408791,3.0,4742.9,4740.1,0.4994]
[1756066409121,31.623,4742.8,4740.1,0.4994]
[1756066409323,30.0,4742.7,4740.6,2.10943427]
[1756066409530,36.3123,4742.7,4740.1,0.04]
[1756066409821,3.0,4742.5,4740.1,0.04]
[1756066410026,2.10877037,4742.1,4740.1,0.04]
[1756066410235,2.10935225,4740.8,4740.1,0.04]
[1756066410434,3.0,4740.6,4740.1,0.04]
[1756066410641,3.0,4740.4,4740.1,0.04]
[1756066410933,30.0,4740.3,4740.1,0.04]
[1756066411092,5.857,4740.2,4740.1,0.04]
[1756066411288,1.623,4740.5,4740.1,0.04]
[1756066411493,1.622,4741.5,4740.4,2.10952662]
[1756066411792,1.622,4741.5,4741.3,2.10911539]
[1756066412102,5.856,4742.7,4742.5,2.10858623]
[1756066412426,1.622,4742.9,4742.8,2.10845913]
[1756066412728,1.622,4742.9,4741.0,2.10925964]
[1756066412945,30.4513,4742.8,4740.1,0.04]
[1756066413108,6.3053,4742.7,4740.1,0.04]
[1756066413442,0.4513,4742.7,4741.1,2.10919868]
[1756066413658,0.4513,4742.7,4740.1,0.04]
[1756066413659,35.853,4742.6,4740.1,0.04]
[1756066413839,30.0,4742.5,4740.1,0.04]
[1756066414304,0.7,4742.1,4740.2,2.10960164]
[1756066414509,0.7,4742.1,4740.1,0.04]
[1756066414510,30.4513,4742.0,4740.1,0.04]
[1756066414811,5.10891372,4741.8,4740.1,0.04]
[1756066415013,3.0,4741.6,4740.1,0.04]
[1756066415340,35.849,4741.5,4740.1,0.04]
[1756066415643,30.0,4741.4,4740.1,0.04]
[1756066415823,0.1056,4740.2,4740.1,0.04]
[1756066416234,1.622,4740.5,4740.4,2.10952662]
[1756066416419,1.622,4740.5,4740.3,2.10956817]
[1756066416735,1.622,4741.4,4740.5,2.10946015]
[1756066416936,1.622,4741.4,4741.2,2.10916705]
[1756066417241,0.4898287,4743.2,4741.2,2.10916705]
[1756066417242,5.846,4742.0,4741.2,2.10915762]
[1756066417441,5.846,4742.0,4741.3,2.1090922]
[1756066417644,5.845,4741.9,4741.0,2.10923036]
[1756066417851,5.845,4741.9,4740.5,2.10948212]
[1756066418161,5.845,4741.9,4740.1,0.04]
[1756066418162,1.622,4742.3,4740.2,2.10961562]
[1756066418324,1.622,4742.3,4742.2,2.1087259]
[1756066418530,5.843,4742.8,4742.5,2.108578]
[1756066418861,1.622,4743.3,4740.7,2.10939312]
[1756066419010,1.622,4743.3,4741.5,0.4594]
[1756066419423,0.7,4742.9,4742.5,2.10858492]
[1756066419661,0.7,4742.9,4741.5,0.4594]
[1756066419842,0.7,4742.9,4741.5,2.56843134]
[1756066420024,0.04,4743.4,4742.6,2.10853652]
[1756066420226,0.04,4743.4,4743.3,2.10823688]
[1756066420750,0.04,4743.4,4742.6,0.21085365]
[1756066420951,0.001,4743.3,4741.6,5.07]
[1756066421155,0.001,4743.3,4742.9,2.10840783]
[1756066421480,0.001,4743.3,4741.6,2.03379274]
[1756066421624,0.001,4743.3,4741.9,2.10883163]
[1756066421825,0.001,4743.3,4741.6,2.03379274]
[1756066422056,0.001,4743.3,4741.2,0.4594]
[1756066422057,0.001,4743.3,4743.1,2.10831253]
[1756066422255,0.001,4743.3,4742.0,2.10878186]
[1756066422538,0.001,4743.3,4741.7,0.36557927]
[1756066422754,1.623,4743.3,4741.9,2.10883755]
[1756066423051,1.623,4743.3,4741.7,0.36557927]
[1756066423256,5.832,4743.2,4742.3,2.10867186]
[1756066423458,5.832,4743.2,4741.7,0.36557927]
[1756066423645,7.454,4743.3,4741.9,2.10885931]
[1756066423841,7.454,4743.3,4741.9,2.10885332]
[1756066424056,5.83,4743.2,4740.8,0.4539]
[1756066424261,30.0,4743.1,4740.8,0.004]
[1756066424462,0.7,4742.9,4740.8,0.004]
[1756066424758,3.0,4742.7,4740.8,0.004]
[1756066424944,35.829,4742.6,4740.8,0.004]
[1756066425262,30.0,4742.5,4740.8,0.004]
[1756066425876,0.84241665,4742.4,4740.8,0.004]
[1756066426024,30.0,4742.3,4740.8,0.004]
[1756066426225,2.10887497,4741.9,4740.8,0.004]
[1756066426424,31.622,4741.8,4740.4,0.004]
[1756066426657,31.622,4741.8,4739.1,0.04]
[1756066426658,2.1090817,4741.4,4739.1,0.04]
[1756066426875,3.0,4740.7,4739.1,0.04]
[1756066427043,0.1056,4739.2,4739.1,0.04]
[1756066427377,37.5516,4739.2,4739.1,0.04]
[1756066427574,37.9843,4739.2,4739.1,0.04]
[1756066427772,7.9843,4739.2,4739.1,0.04]
[1756066428076,41.39529248,4739.2,4739.1,0.04]
[1756066428282,4.269,4739.1,4738.1,1e-08]
[1756066428464,2.11095161,4737.2,4737.1,0.04]
[1756066428662,2.11095161,4737.2,4732.9,2.11285053]
[1756066428663,2.11104074,4737.0,4732.2,0.4499]
[1756066428978,3.0,4736.8,4733.1,2.15277623]
[1756066429169,3.0,4736.5,4733.4,2.11263123]
[1756066429470,2.11181195,4735.3,4733.1,0.04]
[1756066429672,1.622,4735.2,4733.1,0.04]
[1756066429871,35.82,4735.2,4733.3,2.11267302]
[1756066430071,35.82,4735.2,4733.1,0.04]
[1756066430072,36.2527,4735.2,4733.4,2.11263629]
[1756066430244,6.2527,4735.2,4733.4,2.11263493]
[1756066430448,6.2527,4735.2,4733.1,0.04]
[1756066430641,36.2527,4735.2,4733.2,2.11270051]
[1756066430979,6.2527,4735.2,4733.1,2.15275635]
[1756066431276,5.817,4735.2,4733.5,0.4499]
[1756066431449,1.622,4735.6,4733.5,0.4499]
[1756066431650,1.622,4735.6,4734.1,0.4899]
[1756066431850,5.816,4735.8,4734.8,2.11200428]
[1756066432045,5.816,4735.8,4734.1,0.04]
[1756066432244,1.623,4736.9,4736.4,2.11129811]
[1756066432474,1.623,4736.9,4735.0,3.0]
[1756066432643,1.623,4736.9,4736.4,2.11128482]
[1756066432844,1.623,4736.9,4736.5,2.11124671]
[1756066433053,1.623,4736.9,4735.2,0.56018834]
[1756066433253,1.623,4736.9,4735.4,2.11175402]
[1756066433470,1.623,4736.9,4735.2,2.11184321]
[1756066433678,1.623,4736.9,4736.3,2.11133877]
[1756066433972,5.814,4737.8,4735.4,2.11175402]
[1756066434180,5.814,4737.8,4735.4,3.0]
[1756066434350,5.814,4737.8,4737.1,2.11096868]
[1756066434552,5.814,4737.8,4737.2,2.11094442]
[1756066434750,0.04,4738.4,4736.5,0.4499]
[1756066434982,0.04,4738.4,4736.7,2.11117444]
[1756066435181,0.04,4738.4,4738.2,2.11048751]
[1756066436077,0.04,4738.4,4738.2,2.98249266]
[1756066436380,0.04,4739.4,4739.3,2.11001624]
[1756066436564,0.04,4739.4,4739.3,2.55991624]
[1756066437445,0.04,4740.4,4739.4,2.10997172]
[1756066437646,1e-08,4740.4,4740.3,2.10957112]
[1756066438044,1e-08,4740.4,4740.3,5.53149348]
[1756066438168,1e-08,4740.4,4740.3,2.53149348]
[1756066438354,1e-08,4740.4,4740.3,2.10957112]
[1756066438886,1e-08,4740.4,4740.3,2.55947112]
[1756066439060,1e-08,4740.4,4740.3,2.66507112]
[1756066439261,1e-08,4740.4,4740.3,2.10957112]
[1756066440524,1e-08,4740.4,4740.3,2.55947112]
[1756066440716,1.623,4743.2,4740.4,3.0]
[1756066440915,0.001,4743.8,4743.2,2.10828132]
[1756066441201,0.001,4743.8,4743.7,2.1080591]
[1756066441410,0.04,4744.4,4744.1,2.10788136]
[1756066441616,1e-08,4745.4,4745.1,2.10743714]
[1756066441805,0.40967809,4747.0,4746.3,2.10690432]
[1756066441963,0.40967809,4747.3,4747.2,2.10650488]
[1756066442299,1.41133936,4748.4,4747.2,2.10650488]
[1756066442300,1.15553936,4748.9,4747.3,0.21065049]
[1756066442509,0.15884112,4751.0,4749.9,0.5]
[1756066442663,0.001,4751.9,4750.1,3.0]
[1756066442866,0.001,4751.9,4751.8,2.10446567]
[1756066443553,0.001,4751.9,4750.5,2.10504157]
[1756066443554,0.001,4751.9,4751.7,2.10449083]
[1756066443955,0.001,4751.9,4751.8,0.19262998]
[1756066444156,0.4327,4751.8,4750.2,2.10517451]
[1756066444409,0.001,4751.9,4751.7,2.10448599]
[1756066444706,0.001,4751.9,4751.7,2.10449325]
[1756066445055,0.001,4751.9,4750.7,2.10495295]
[1756066445056,0.001,4751.9,4749.5,2.10545014]
[1756066445296,0.001,4751.9,4751.7,2.1045007]
[1756066446398,0.001,4751.9,4749.8,1.621]
[1756066446597,0.001,4751.9,4751.7,2.10448444]
[1756066446970,0.4327,4751.8,4749.2,2.10560536]
[1756066447176,0.001,4751.9,4750.6,2.10498813]
[1756066447361,0.4327,4751.8,4750.7,2.10493623]
[1756066447566,2.0527,4751.8,4749.7,2.10539613]
[1756066447763,0.4327,4751.7,4749.1,0.04]
[1756066448080,0.4327,4751.7,4750.6,2.10498464]
[1756066448273,0.4327,4751.7,4749.1,0.04]
[1756066448473,0.7,4751.5,4750.0,2.10525014]
[1756066448670,0.4327,4751.4,4749.8,2.10532125]
[1756066448901,0.11327,4751.3,4750.3,2.1051036]
[1756066449101,0.4327,4751.4,4749.1,0.04]
[1756066449563,0.1056,4749.3,4749.1,0.04]
[1756066449758,0.5383,4749.3,4749.1,0.04]
[1756066450275,0.1056,4749.3,4749.1,0.04]
[1756066450668,0.4327,4750.1,4749.1,2.14564868]
[1756066450865,0.4327,4750.1,4749.1,0.04]
[1756066451406,30.0,4750.0,4749.1,0.04]
[1756066451604,6.1977,4749.9,4748.1,0.04]
[1756066451895,37.034,4749.8,4748.1,0.04]
[1756066452097,30.0,4749.7,4748.1,0.04]
[1756066452309,32.53810741,4749.7,4748.1,0.04]
[1756066452515,37.67786158,4749.6,4748.1,0.04]
[1756066452725,30.0,4749.5,4748.1,0.04]
[1756066452864,3.0,4749.4,4748.1,0.04]
[1756066453061,3.0,4749.2,4748.1,0.04]
[1756066453294,3.0,4749.0,4748.1,0.04]
[1756066453496,2.10589051,4748.6,4748.1,0.04]
[1756066453697,35.761,4748.9,4748.1,0.04]
[1756066453698,35.761,4748.5,4748.1,0.04]
[1756066453902,2.10601689,4748.3,4748.1,0.04]
[1756066454100,2.10648667,4747.3,4747.1,0.04]
[1756066454396,2.10654926,4747.1,4746.1,0.04]
[1756066454699,37.379,4747.2,4746.1,0.04]
[1756066454700,35.758,4747.0,4746.1,0.04]
[1756066454903,35.758,4746.9,4746.1,0.04]
[1756066455099,30.0,4746.8,4746.1,0.04]
[1756066455472,0.4654,4746.8,4746.1,0.04]
[1756066455798,5.756,4746.7,4746.1,0.04]
[1756066456165,1.62,4747.2,4746.1,0.04]
[1756066456565,1.62,4747.2,4746.3,0.004]
[1756066456566,0.4654,4746.8,4746.3,0.004]
[1756066456768,0.4654,4746.8,4744.1,0.04]
[1756066456769,30.0,4746.3,4744.1,0.04]
[1756066456968,6.2204,4746.2,4744.1,0.04]
[1756066457171,6.72700689,4746.1,4744.1,0.04]
[1756066457407,8.753,4746.0,4744.1,0.04]
[1756066457569,3.0,4745.8,4744.1,0.04]
[1756066457902,35.753,4745.9,4744.1,0.04]
[1756066457903,3.32982896,4745.6,4744.1,0.04]
[1756066458112,2.10783083,4744.3,4744.1,0.04]
[1756066458407,37.371,4744.2,4744.1,0.04]
[1756066458716,7.8364,4744.2,4744.1,0.04]
[1756066459198,7.8354,4744.2,4744.1,0.04]
[1756066459705,1.62,4744.2,4744.1,0.04]
[1756066460077,2.0854,4744.2,4744.1,0.04]
[1756066460605,2.10669964,4746.8,4744.1,0.04]
[1756066460606,0.1032658,4748.9,4744.1,0.04]
[1756066460809,0.4654,4748.1,4744.2,3.168]
[1756066460971,0.1056,4746.1,4746.0,2.1070375]
[1756066461175,0.4654,4748.3,4745.2,3.0]
[1756066461493,30.0,4748.2,4744.9,4.788]
[1756066461803,0.4654,4748.3,4747.8,2.10622905]
[1756066461804,7.365,4748.1,4747.8,2.10622905]
[1756066462023,1.62,4748.1,4746.3,2.10690432]
[1756066462225,1.62,4748.1,4744.9,1.788]
[1756066462226,1.62,4748.1,4748.0,2.10614995]
[1756066462516,0.04,4748.4,4746.7,2.10672677]
[1756066462679,30.0,4748.3,4745.3,0.168]
[1756066462870,5.744,4748.2,4745.3,0.168]
[1756066463074,5.744,4748.2,4745.5,3.0]
[1756066463271,0.4654,4748.1,4745.6,0.52753039]
[1756066463504,0.4654,4748.1,4744.7,2.10759563]
[1756066463505,1.62,4748.0,4746.9,2.10659373]
[1756066463714,1.62,4748.0,4745.4,3.0]
[1756066463894,1.62,4748.0,4747.8,2.10623572]
[1756066464096,0.04,4748.4,4748.3,2.10601689]
[1756066464271,0.5054,4748.4,4748.2,2.10605844]
[1756066464472,0.5054,4748.4,4748.2,2.1060429]
[1756066464912,0.04,4748.4,4745.8,2.10711783]
[1756066465075,0.4654,4748.3,4745.9,0.37271178]
[1756066465273,30.0,4748.2,4745.9,0.37271178]
[1756066465514,30.0,4748.2,4745.4,2.10729424]
[1756066465515,6.2034,4748.1,4744.9,2.1075251]
[1756066465722,30.0,4748.0,4744.9,2.10750857]
[1756066466018,1.62,4747.9,4745.9,2.10707407]
[1756066466202,30.0,4747.8,4745.3,0.004]
[1756066466403,30.4654,4747.8,4745.3,0.004]
[1756066466616,3.0,4747.6,4745.3,0.004]
[1756066466913,2.10659778,4747.0,4745.3,0.004]
[1756066467079,2.10670601,4746.8,4745.3,0.004]
[1756066467283,31.62,4746.7,4745.3,2.11133093]
[1756066467521,35.734,4746.6,4745.3,0.004]
[1756066467817,1.62,4746.7,4745.3,0.004]
[1756066468002,2.14555854,4749.4,4745.6,2.1072151]
[1756066468003,1.62,4747.7,4745.6,2.1072151]
[1756066468210,1.62,4747.7,4747.3,2.1064162]
[1756066468408,0.5054,4748.4,4748.3,2.10601689]
[1756066468409,0.04,4748.4,4748.3,2.10601689]
[1756066469353,0.04,4749.4,4749.3,2.10557345]
[1756066469687,0.15783553,4751.3,4750.3,2.1051302]
[1756066469917,0.001,4751.7,4750.3,2.1051302]
[1756066470125,0.001,4751.7,4749.6,2.10541156]
[1756066470329,0.001,4751.7,4748.0,5.064]
[1756066470330,0.5054,4750.4,4749.9,2.10527782]
[1756066470487,0.4654,4750.3,4747.7,3.0]
[1756066470688,0.4654,4750.3,4749.3,2.10555814]
[1756066470894,0.4654,4750.3,4748.6,2.10584832]
[1756066471196,0.4654,4750.3,4747.7,3.0]
[1756066471197,0.4654,4750.3,4748.1,0.1056]
[1756066471397,0.1056,4748.8,4748.2,2.10606124]
[1756066471738,0.1056,4748.8,4747.3,2.2744397]
[1756066471739,0.1056,4748.2,4746.9,0.1056]
[1756066471947,0.4654,4749.3,4746.6,1.62]
[1756066471948,0.1056,4747.9,4746.7,0.19386163]
[1756066472099,1.62,4749.1,4749.0,2.10570646]
[1756066472549,1.62,4749.1,4747.3,2.10646051]
[1756066472550,2.0854,4749.1,4747.1,2.14652133]
[1756066472700,0.1056,4748.8,4747.2,2.10650488]
[1756066472899,0.1056,4747.3,4747.1,0.04]
[1756066473200,0.4654,4747.2,4747.1,0.04]
[1756066473397,0.571,4747.2,4745.1,0.04]
[1756066473612,0.1056,4746.2,4746.0,2.10700361]
[1756066474408,1.62,4747.4,4747.2,2.10650365]
[1756066474609,1.62,4747.9,4747.7,2.10626473]
[1756066474826,0.571,4747.8,4746.9,2.10663237]
[1756066475028,0.4654,4747.8,4746.9,2.10663237]
[1756066475214,0.1056,4747.0,4745.3,2.11132205]
[1756066475534,0.1056,4746.2,4745.3,0.004]
[1756066475722,0.1056,4746.2,4746.1,2.14699311]
[1756066477149,5.71,4747.8,4746.1,0.04]
[1756066477432,30.0,4747.7,4746.4,2.10684536]
[1756066477645,30.0,4747.7,4746.1,0.04]
[1756066477646,30.0,4747.7,4746.5,2.10681535]
[1756066477812,30.0,4747.7,4746.2,2.10694871]
[1756066478011,30.0,4747.7,4746.1,0.04]
[1756066478343,6.1754,4747.8,4746.6,2.1067404]
[1756066478500,1.62,4747.9,4746.2,2.10694871]
[1756066478702,1.62,4747.9,4747.7,2.10624379]
[1756066478900,1.62,4747.9,4747.5,2.10633146]
[1756066479127,1.62,4747.9,4747.6,2.10631044]
[1756066479351,1.62,4747.9,4746.3,0.21469487]
[1756066479518,1.62,4747.9,4745.9,2.10706278]
[1756066479519,30.4654,4747.8,4745.9,2.10706278]
[1756066479720,30.0,4747.7,4745.1,0.04]
[1756066479942,2.10650377,4747.3,4745.1,0.04]
[1756066480154,30.0,4747.2,4745.1,0.04]
[1756066480444,0.4654,4747.2,4745.1,0.04]
[1756066480607,5.701,4747.1,4745.1,2.1473964]
[1756066481010,5.701,4747.1,4745.1,0.04]
[1756066481206,5.701,4747.1,4746.1,2.14698947]
[1756066481413,5.701,4747.1,4746.1,0.04]
[1756066481708,0.4654,4747.2,4746.1,0.04]
[1756066481910,5.699,4747.0,4746.1,0.04]
[1756066482317,5.697,4746.9,4746.6,2.10674901]
[1756066482543,5.697,4746.9,4746.6,2.10673885]
[1756066482719,1.62,4747.9,4746.7,2.10672677]
[1756066482927,5.696,4747.8,4746.6,2.10675699]
[1756066483116,1.62,4747.9,4746.9,2.1066319]
[1756066483316,1.62,4747.9,4746.1,0.04]
[1756066483317,5.695,4747.8,4746.1,0.04]
[1756066483550,5.695,4747.8,4746.2,0.21470572]
[1756066483714,5.695,4747.8,4746.7,2.10672479]
[1756066483912,30.4685,4747.7,4746.1,0.04]
[1756066484207,5.693,4747.6,4746.1,0.04]
[1756066484411,5.693,4747.6,4747.4,2.10640707]
[1756066484611,1.62,4747.9,4747.7,2.10627623]
[1756066484913,1.62,4747.9,4747.6,2.10632142]
[1756066485141,1.62,4747.9,4746.1,0.04]
[1756066485343,1.62,4747.9,4746.1,0.27551046]
[1756066485655,1.62,4747.9,4747.5,2.10636328]
[1756066485851,0.4685,4747.8,4746.1,0.04]
[1756066486025,30.0,4747.7,4746.1,0.04]
[1756066486222,0.4685,4747.6,4746.1,0.04]
[1756066486426,2.10649724,4747.3,4746.1,0.04]
[1756066486629,36.1555,4747.2,4746.1,0.04]
[1756066486942,6.1555,4747.2,4746.1,0.04]
[1756066487144,0.1056,4746.2,4746.1,0.04]
[1756066487737,0.5741,4746.2,4746.1,0.04]
[1756066489342,0.1056,4746.2,4746.1,0.04]
[1756066489664,5.063,4749.1,4747.1,2.10654926]
[1756066489665,0.4685,4748.5,4747.1,2.10654926]
[1756066489861,1.62,4749.2,4747.1,0.21065493]